bitfinex/quotes_SOLUSD_20260114
["timestamp","ask_amount","ask_price","bid_price","bid_amount"]
[1768400304180,13.22072549,145.25,145.23,5.1927157]
[1768400304383,13.22072549,145.25,145.22,5.1927157]
[1768400304788,12.56,145.24,145.22,5.1927157]
[1768400305099,12.56,145.24,145.2,5.1927157]
[1768400305100,0.66072549,145.23,145.2,5.1927157]
[1768400305307,0.66072549,145.23,145.19,5.3927157]
[1768400305599,0.66072549,145.23,145.2,5.1927157]
[1768400305905,0.66072549,145.23,145.21,5.1927157]
[1768400306301,0.66072549,145.23,145.2,5.1927157]
[1768400306685,7.54648438,145.23,145.19,0.2]
[1768400306999,6.88575889,145.23,145.2,4.4677157]
[1768400307203,12.56,145.22,145.21,5.1927157]
[1768400307513,12.56,145.22,145.2,5.1927157]
[1768400307689,12.56,145.22,145.18,0.71359637]
[1768400307893,12.56,145.22,145.2,5.1927157]
[1768400308290,12.56,145.22,145.19,5.1927157]
[1768400308473,12.56,145.22,145.18,0.71359637]
[1768400308678,12.56,145.22,145.19,5.1927157]
[1768400308879,19.44617283,145.22,145.18,0.71359637]
[1768400309077,24.71015243,145.22,145.16,0.71359637]
[1768400309280,36.73269633,145.22,145.17,5.1927157]
[1768400310000,6.95743673,145.22,145.18,5.1927157]
[1768400310189,12.56,145.21,145.18,5.1927157]
[1768400310577,6.95743673,145.22,145.18,5.1927157]
[1768400310797,12.56,145.21,145.2,5.1927157]
[1768400311295,0.0712639,145.24,145.2,5.1927157]
[1768400311506,12.6312639,145.23,145.19,5.1927157]
[1768400311803,12.56,145.22,145.19,5.90631207]
[1768400312799,6.88591885,145.23,145.2,0.71359637]
[1768400312981,0.0712639,145.28,145.22,5.1927157]
[1768400313306,0.0712639,145.28,145.23,5.1927157]
[1768400313481,12.56,145.27,145.23,5.1927157]
[1768400313682,12.56,145.27,145.22,5.90631207]
[1768400314206,19.44420762,145.26,145.23,5.90631207]
[1768400314384,6.88393233,145.27,145.23,5.90631207]
[1768400314584,12.56,145.26,145.23,5.90631207]
[1768400315486,17.20891827,145.28,145.24,5.90631207]
[1768400315700,12.56,145.28,145.26,5.1927157]
[1768400315889,12.56,145.3,145.26,5.1927157]
[1768400316508,12.56,145.3,145.25,5.90631207]
[1768400316682,6.95310272,145.31,145.26,5.1927157]
[1768400316885,12.56,145.3,145.26,5.90631207]
[1768400317089,6.88278615,145.29,145.26,5.90631207]
[1768400317304,12.56,145.28,145.26,0.71359637]
[1768400317689,6.88278615,145.29,145.26,0.71359637]
[1768400317893,19.44278615,145.29,145.26,5.90631207]
[1768400318107,6.88278615,145.29,145.26,5.90631207]
[1768400318305,19.44278615,145.29,145.26,5.90631207]
[1768400318613,6.88278615,145.29,145.26,5.90631207]
[1768400318785,12.56,145.29,145.26,5.90631207]
[1768400318990,6.88242012,145.3,145.26,5.90631207]
[1768400319312,12.56,145.29,145.26,0.71359637]
[1768400321221,12.56,145.29,145.27,5.90631207]
[1768400321389,6.88258436,145.3,145.27,5.90631207]
[1768400321588,19.44258436,145.3,145.28,5.1927157]
[1768400322311,19.44258436,145.3,145.27,5.90631207]
[1768400324208,12.56,145.29,145.26,5.1927157]
[1768400324394,19.44325245,145.29,145.25,0.71359637]
[1768400324712,19.44325245,145.29,145.26,5.90631207]
[1768400324888,19.44325245,145.29,145.26,0.71359637]
[1768400325088,19.44325245,145.29,145.26,5.90631207]
[1768400326416,36.72148172,145.29,145.24,0.71359637]
[1768400326809,36.72148172,145.29,145.24,5.90631207]
[1768400328107,41.91419742,145.29,145.24,5.90631207]
[1768400328609,0.0712639,145.27,145.22,0.71359637]
[1768400328814,12.6312639,145.26,145.2,0.71359637]
[1768400329012,0.0712639,145.25,145.2,5.90631207]
[1768400330299,0.0712639,145.25,145.2,5.1927157]
[1768400330498,0.0712639,145.24,145.19,0.71359637]
[1768400330704,12.56,145.23,145.21,5.1927157]
[1768400332816,17.28296785,145.25,145.21,5.1927157]
[1768400333021,12.56,145.24,145.21,5.1927157]
[1768400333897,12.56,145.24,145.2,0.66464935]
[1768400334097,17.28296785,145.25,145.21,5.1927157]
[1768400334312,12.56,145.24,145.21,5.1927157]
[1768400334912,6.88562969,145.23,145.21,5.1927157]
[1768400335420,17.20995198,145.27,145.23,0.66464935]
[1768400335621,36.72599058,145.26,145.21,0.66464935]
[1768400335803,36.65472668,145.26,145.22,0.66464935]
[1768400336005,36.65472668,145.26,145.23,8.45086952]
[1768400336526,19.44420762,145.26,145.24,8.45086952]
[1768400336906,19.44420762,145.26,145.23,0.66464935]
[1768400337118,12.56,145.25,145.24,8.45086952]
[1768400337317,12.56,145.25,145.24,3.4122061]
[1768400337509,6.88420762,145.26,145.24,3.4122061]
[1768400338119,6.88420762,145.26,145.23,0.66464935]
[1768400338318,6.88420762,145.26,145.23,4.07685545]
[1768400339024,17.20984814,145.27,145.2,0.66464935]
[1768400339204,20.62205424,145.27,145.22,3.4122061]
[1768400339729,17.20984814,145.27,145.22,3.4122061]
[1768400339926,20.62205424,145.27,145.21,4.07685545]
[1768400340128,27.50578797,145.27,145.21,4.07685545]
[1768400340627,0.099,145.25,145.2,3.4122061]
[1768400342216,6.8851556,145.24,145.2,3.4122061]
[1768400342412,6.8851556,145.24,145.19,0.66464935]
[1768400342621,6.8851556,145.24,145.21,0.66464935]
[1768400342820,6.8851556,145.24,145.21,4.07685545]
[1768400343013,6.8851556,145.24,145.21,0.66464935]
[1768400343825,6.8851556,145.24,145.21,4.07685545]
[1768400344129,6.8851556,145.24,145.21,0.66464935]
[1768400345030,24.09804461,145.24,145.2,3.4122061]
[1768400345226,24.09804461,145.24,145.2,4.07685545]
[1768400347621,24.75703746,145.24,145.21,3.4122061]
[1768400347814,24.75703746,145.24,145.2,4.07685545]
[1768400348637,0.10459993,145.23,145.18,0.66464935]
[1768400348822,6.88610384,145.22,145.19,3.4122061]
[1768400349022,6.88610384,145.22,145.19,0.66464935]
[1768400349741,6.88610384,145.22,145.19,4.07685545]
[1768400349915,7.53955276,145.22,145.18,3.4122061]
[1768400350113,7.53955276,145.22,145.19,3.4122061]
[1768400350318,6.88610384,145.22,145.19,3.4122061]
[1768400350723,6.88610384,145.22,145.18,0.66464935]
[1768400350922,0.66464935,145.23,145.2,4.07685545]
[1768400350923,6.88581695,145.23,145.2,4.07685545]
[1768400352120,24.0986482,145.24,145.2,0.66464935]
[1768400352322,24.1976482,145.24,145.2,0.66464935]
[1768400353239,24.0986482,145.24,145.21,0.66464935]
[1768400354234,24.0986482,145.24,145.2,3.4122061]
[1768400354423,24.0986482,145.24,145.2,4.07685545]
[1768400354624,24.0986482,145.24,145.2,0.66464935]
[1768400355224,6.8851556,145.24,145.21,0.66464935]
[1768400355547,120.10883366,145.28,145.23,4.07685545]
[1768400355724,6.88417696,145.27,145.24,4.07685545]
[1768400356419,6.88417696,145.27,145.24,0.66464935]
[1768400356846,28.17036675,145.27,145.21,0.66464935]
[1768400357150,28.17036675,145.27,145.22,4.07685545]
[1768400357845,24.75816065,145.27,145.22,0.66464935]
[1768400358154,24.75816065,145.27,145.22,4.07685545]
[1768400358446,0.65899285,145.25,145.2,13.22464935]
[1768400358647,0.65899285,145.25,145.2,0.66464935]
[1768400358958,6.98975553,145.24,145.2,4.07685545]
[1768400359649,6.98975553,145.24,145.2,0.66464935]
[1768400359830,6.98975553,145.24,145.2,4.07685545]
[1768400360725,6.98975553,145.24,145.15,6.39894388]
[1768400360726,0.11008842,145.22,145.15,6.39894388]
[1768400360954,6.99661812,145.22,145.18,3.4122061]
[1768400361132,6.99661812,145.22,145.18,4.11037223]
[1768400363752,6.99661812,145.22,145.18,0.69816613]
[1768400367655,24.21187772,145.22,145.17,3.4122061]
[1768400367858,24.21187772,145.22,145.17,4.11037223]
[1768400369457,0.11008842,145.22,145.18,4.11037223]
[1768400369672,7.5505681,145.23,145.19,4.11037223]
[1768400369960,7.5505681,145.23,145.19,0.69816613]
[1768400369961,0.66464935,145.23,145.19,0.69816613]
[1768400370951,7.55031489,145.23,145.19,0.69816613]
[1768400371155,0.099,145.22,145.18,4.11037223]
[1768400371343,0.099,145.22,145.18,0.69816613]
[1768400371543,0.099,145.22,145.18,4.11037223]
[1768400373562,0.099,145.22,145.18,0.69816613]
[1768400373863,0.099,145.22,145.18,4.11037223]
[1768400375759,0.099,145.22,145.18,0.69816613]
[1768400375939,0.099,145.22,145.18,4.11037223]
[1768400376741,0.099,145.22,145.18,0.69816613]
[1768400376940,0.099,145.22,145.18,4.11037223]
[1768400377945,0.099,145.22,145.18,0.69816613]
[1768400378148,0.099,145.22,145.18,4.11037223]
[1768400378853,7.55031489,145.23,145.19,0.69816613]
[1768400379044,7.55031489,145.23,145.19,4.11037223]
[1768400379045,0.66464935,145.23,145.19,4.11037223]
[1768400379252,7.54997798,145.24,145.2,0.69816613]
[1768400379560,4.07119895,145.22,145.18,0.69816613]
[1768400379745,0.65899285,145.22,145.18,4.11037223]
[1768400380063,0.66464935,145.23,145.19,4.11037223]
[1768400380238,0.66464935,145.23,145.19,7.585548]
[1768400380566,6.6801107,145.27,145.22,0.69816613]
[1768400380567,4.07685545,145.27,145.22,0.69816613]
[1768400381565,10.96058918,145.27,145.22,0.69816613]
[1768400382265,7.54838308,145.27,145.22,0.69816613]
[1768400382461,10.96058918,145.27,145.22,0.69816613]
[1768400382675,7.54838308,145.27,145.22,0.69816613]
[1768400382966,7.54838308,145.27,145.22,4.11037223]
[1768400383356,0.66464935,145.29,145.24,4.11037223]
[1768400383545,0.66464935,145.29,145.25,0.69816613]
[1768400384243,7.54701539,145.3,145.25,0.69816613]
[1768400384683,7.54701539,145.3,145.26,0.69816613]
[1768400385647,10.95922149,145.3,145.26,0.69816613]
[1768400386963,7.54701539,145.3,145.26,0.69816613]
[1768400387267,10.95922149,145.3,145.26,0.69816613]
[1768400388664,3.4122061,145.29,145.26,0.69816613]
[1768400389375,6.6801107,145.32,145.27,0.69816613]
[1768400389576,106.4112061,145.33,145.28,0.69816613]
[1768400390173,113.29211592,145.33,145.28,0.69816613]
[1768400390478,109.87990982,145.33,145.28,0.69816613]
[1768400390675,113.29211592,145.33,145.28,0.69816613]
[1768400391471,109.78090982,145.33,145.29,0.68631712]
[1768400391661,102.9,145.33,145.3,0.68631712]
[1768400391972,109.7809302,145.33,145.3,0.66000324]
[1768400393775,102.9,145.33,145.3,0.66000324]
[1768400393969,10.29261856,145.35,145.3,0.66000324]
[1768400394357,6.88041246,145.35,145.3,0.66000324]
[1768400394574,10.29261856,145.35,145.3,0.66000324]
[1768400395370,6.88041246,145.35,145.3,0.66000324]
[1768400395568,10.29261856,145.35,145.3,0.66000324]
[1768400396064,6.88041246,145.35,145.3,0.66000324]
[1768400396278,10.29261856,145.35,145.3,0.66000324]
[1768400397362,9.74703778,145.35,145.3,0.66000324]
[1768400398466,7.56545605,145.35,145.3,0.66000324]
[1768400398670,9.74703778,145.35,145.3,0.66000324]
[1768400399070,2.28644217,145.34,145.3,0.66000324]
[1768400399370,2.18158173,145.33,145.3,13.22000324]
[1768400399961,2.86082349,145.33,145.3,12.56]
[1768400400776,2.86082349,145.33,145.26,0.68631712]
[1768400400777,2.87254496,145.31,145.26,0.68631712]
[1768400401081,9.7547433,145.31,145.26,0.68631712]
[1768400401271,0.099,145.3,145.26,0.68631712]
[1768400401467,2.28058173,145.3,145.26,0.68631712]
[1768400401875,14.84058173,145.3,145.26,0.68631712]
[1768400402574,2.28644217,145.28,145.24,0.68631712]
[1768400403078,0.67924176,145.27,145.23,0.68631712]
[1768400403264,19.44334982,145.28,145.23,0.68631712]
[1768400403655,6.88334982,145.28,145.23,0.68631712]
[1768400403860,2.18158173,145.27,145.23,0.68631712]
[1768400404074,2.28644217,145.26,145.21,0.68631712]
[1768400404581,0.10486044,145.26,145.21,0.68631712]
[1768400404771,2.28644217,145.26,145.21,0.68631712]
[1768400404974,20.12392591,145.25,145.21,0.68631712]
[1768400405678,19.44439512,145.26,145.22,0.68631712]
[1768400406784,19.54339512,145.26,145.22,0.68631712]
[1768400406991,21.72497685,145.26,145.22,0.68631712]
[1768400407282,2.18158173,145.25,145.21,0.68631712]
[1768400407588,0.68504359,145.25,145.21,0.68631712]
[1768400407791,2.86662532,145.25,145.21,0.68631712]
[1768400408174,0.68504359,145.25,145.21,0.68631712]
[1768400408775,2.86662532,145.25,145.21,0.68631712]
[1768400409183,15.42662532,145.25,145.21,0.68631712]
[1768400409489,22.31167117,145.25,145.21,0.68631712]
[1768400409695,2.86082349,145.23,145.18,0.68631712]
[1768400410577,14.85218598,145.22,145.18,0.68631712]
[1768400410780,0.67355539,145.21,145.16,0.68631712]
[1768400410994,0.67355539,145.21,145.17,0.68631712]
[1768400411380,15.43254496,145.22,145.17,7.57477992]
[1768400411809,2.87254496,145.22,145.17,7.57477992]
[1768400412000,15.43254496,145.22,145.17,7.57477992]
[1768400412702,13.25096323,145.22,145.18,0.68631712]
[1768400412910,6.88594458,145.23,145.18,0.68631712]
[1768400413095,17.21170395,145.25,145.19,0.68631712]
[1768400413096,12.56,145.22,145.19,0.68631712]
[1768400413609,9.75784328,145.24,145.19,0.68631712]
[1768400413909,12.56,145.23,145.19,0.68631712]
[1768400415405,21.72634609,145.23,145.19,0.68631712]
[1768400415783,6.98476436,145.23,145.19,0.68631712]
[1768400416105,21.72634609,145.23,145.19,0.68631712]
[1768400416707,19.54476436,145.23,145.19,0.68631712]
[1768400417490,21.72634609,145.23,145.19,0.68631712]
[1768400418195,9.16634609,145.23,145.19,0.68631712]
[1768400418397,17.21170395,145.25,145.19,0.68631712]
[1768400418398,115.46,145.26,145.22,0.68631712]
[1768400418712,12.56,145.26,145.22,0.68631712]
[1768400419085,12.659,145.26,145.22,0.68631712]
[1768400419301,19.54323931,145.26,145.22,0.68631712]
[1768400420298,6.98323931,145.26,145.22,0.68631712]
[1768400420500,19.54323931,145.26,145.22,0.68631712]
[1768400421107,12.659,145.26,145.22,0.68631712]
[1768400421619,0.099,145.26,145.22,0.68631712]
[1768400421794,12.659,145.26,145.22,0.68631712]
[1768400422702,0.099,145.26,145.22,0.68631712]
[1768400423504,12.659,145.26,145.22,0.68631712]
[1768400423696,21.72490688,145.26,145.22,0.68631712]
[1768400424403,0.099,145.26,145.22,0.68631712]
[1768400425005,9.75643612,145.27,145.22,0.68631712]
[1768400425203,12.56,145.26,145.22,0.68631712]
[1768400425402,20.13485439,145.27,145.22,0.68631712]
[1768400425598,0.099,145.28,145.23,0.72050134]
[1768400425801,12.659,145.28,145.23,0.72050134]
[1768400426298,0.099,145.28,145.23,0.72050134]
[1768400426489,20.13405699,145.29,145.24,0.72050134]
[1768400427090,2.18158173,145.29,145.25,0.72050134]
[1768400427294,12.66,145.38,145.29,0.72050134]
[1768400427488,2.18158173,145.35,145.29,0.72050134]
[1768400427690,2.18158173,145.34,145.29,0.72050134]
[1768400427904,2.18158173,145.33,145.29,0.72050134]
[1768400428208,2.18158173,145.34,145.29,0.72050134]
[1768400428407,12.56,145.35,145.29,0.72050134]
[1768400428704,2.18158173,145.33,145.29,0.72050134]
[1768400428889,2.18158173,145.34,145.29,0.72050134]
[1768400429090,0.69601606,145.33,145.29,0.72050134]
[1768400429911,9.75853755,145.33,145.29,0.72050134]
[1768400430087,2.87759779,145.33,145.29,0.72050134]
[1768400430284,0.69601606,145.33,145.29,0.72050134]
[1768400430512,2.87759779,145.33,145.29,0.72050134]
[1768400431434,0.69601606,145.33,145.29,7.60327624]
[1768400431890,0.69601606,145.33,145.29,0.72050134]
[1768400432619,12.56,145.32,145.29,7.603187]
[1768400433315,12.56,145.32,145.29,0.72050134]
[1768400433619,12.56,145.32,145.29,7.60328124]
[1768400434117,0.69601606,145.33,145.29,7.60328124]
[1768400434415,0.69601606,145.34,145.3,0.72050134]
[1768400434603,12.56,145.32,145.3,0.72050134]
[1768400435217,12.56,145.32,145.3,0.66050136]
[1768400436112,0.69601606,145.34,145.3,0.66050136]
[1768400436318,12.56,145.33,145.3,0.60050137]
[1768400436902,12.80649407,145.33,145.29,6.8827799]
[1768400438098,12.80649407,145.33,145.29,9.06436163]
[1768400438320,12.56,145.33,145.3,0.72050134]
[1768400438495,9.7577585,145.35,145.3,0.72050134]
[1768400438690,0.69601606,145.35,145.31,0.72050134]
[1768400438896,12.56,145.34,145.31,0.72050134]
[1768400439508,12.80649407,145.34,145.3,0.72050134]
[1768400440605,12.56,145.34,145.3,0.72050134]
[1768400441003,14.74158173,145.34,145.3,0.72050134]
[1768400442118,14.74158173,145.34,145.33,0.5]
[1768400442319,0.25094433,145.31,145.26,0.72050134]
[1768400442511,13.24711508,145.3,145.26,0.72050134]
[1768400442823,2.18158173,145.29,145.26,0.72050134]
[1768400443300,0.25530604,145.29,145.25,0.72050134]
[1768400443506,2.86437872,145.28,145.23,0.72050134]
[1768400443728,12.56,145.27,145.23,0.72050134]
[1768400444241,14.74158173,145.27,145.23,0.72050134]
[1768400444406,12.56,145.27,145.23,0.72050134]
[1768400444811,12.56,145.27,145.24,0.72050134]
[1768400447510,2.18158173,145.28,145.24,0.72050134]
[1768400447715,12.56,145.27,145.24,0.72050134]
[1768400448032,12.56,145.26,145.25,0.72050134]
[1768400448812,2.18158173,145.28,145.25,0.72050134]
[1768400449020,12.56,145.26,145.25,0.72050134]
[1768400454131,12.53,145.26,145.25,0.72050134]
[1768400454720,9.76054471,145.29,145.25,0.72050134]
[1768400454927,11.835,145.26,145.24,6.88510293]
[1768400455525,2.18158173,145.29,145.25,6.88468158]
[1768400455729,0.6876765,145.3,145.25,6.88468158]
[1768400455913,13.2476765,145.29,145.25,6.88468158]
[1768400456239,0.6876765,145.28,145.19,34.43711046]
[1768400456540,34.40209164,145.34,145.22,2.18158173]
[1768400456849,34.40209164,145.34,145.23,13.24856296]
[1768400456850,0.6876765,145.33,145.23,13.24856296]
[1768400457020,0.6876765,145.33,145.27,2.18158173]
[1768400457221,13.2476765,145.33,145.28,2.18158173]
[1768400457718,14.74158173,145.33,145.27,2.18158173]
[1768400457918,0.6876765,145.31,145.23,12.56]
[1768400458123,0.6876765,145.31,145.26,6.88420762]
[1768400458424,2.86925823,145.31,145.26,6.88420762]
[1768400458619,0.6876765,145.31,145.26,6.88420762]
[1768400459537,0.6876765,145.31,145.24,24.09754548]
[1768400459764,4.09787525,145.31,145.24,24.09754548]
[1768400460131,4.09787525,145.31,145.25,3.41019875]
[1768400460749,0.6876765,145.31,145.26,3.41019875]
[1768400460922,4.09787525,145.31,145.25,3.41019875]
[1768400461127,0.6876765,145.31,145.26,6.88420762]
[1768400461327,0.6876765,145.3,145.26,6.88420762]
[1768400461628,0.6876765,145.3,145.25,10.29478753]
[1768400462019,0.6876765,145.3,145.25,6.88458878]
[1768400462245,0.6876765,145.3,145.25,10.29478753]
[1768400463022,0.6876765,145.3,145.26,3.41019875]
[1768400464431,0.6876765,145.3,145.26,10.29398471]
[1768400464821,15.97019875,145.31,145.26,10.29398471]
[1768400465025,13.2476765,145.31,145.26,10.29398471]
[1768400465638,16.65787525,145.31,145.26,10.29398471]
[1768400466831,4.09787525,145.31,145.26,10.29398471]
[1768400467044,0.6876765,145.31,145.26,10.29398471]
[1768400467271,13.2476765,145.31,145.26,27.50450377]
[1768400467627,13.2476765,145.31,145.27,3.41019875]
[1768400467852,0.6876765,145.31,145.26,27.50450377]
[1768400469241,0.6876765,145.31,145.26,24.09430502]
[1768400469556,0.6876765,145.31,145.27,3.41019875]
[1768400470253,0.6876765,145.31,145.27,10.29357797]
[1768400471565,0.6876765,145.31,145.27,6.88337922]
[1768400471768,0.6876765,145.31,145.27,10.29357797]
[1768400472073,0.6876765,145.31,145.27,6.88337922]
[1768400472855,0.6876765,145.34,145.29,3.41019875]
[1768400473733,0.6876765,145.34,145.27,24.09271356]
[1768400473938,0.6876765,145.34,145.29,10.29269348]
[1768400474139,0.6876765,145.34,145.29,6.88249473]
[1768400474337,0.6876765,145.34,145.29,10.29269348]
[1768400475457,0.6876765,145.34,145.29,27.49965885]
[1768400475755,0.6876765,145.34,145.3,3.41019875]
[1768400475954,0.6876765,145.34,145.3,10.29203934]
[1768400476533,0.6876765,145.35,145.31,3.41019875]
[1768400476859,0.6876765,145.36,145.32,3.41019875]
[1768400477366,0.1,145.39,145.35,3.41019875]
[1768400477540,0.1,145.39,145.37,3.41019875]
[1768400477745,0.6876765,145.43,145.38,3.41019875]
[1768400478441,0.6876765,145.42,145.37,10.28919716]
[1768400479049,0.6876765,145.42,145.37,6.87899841]
[1768400479354,0.6876765,145.42,145.37,10.28919716]
[1768400479733,0.6876765,145.42,145.38,3.41019875]
[1768400480164,0.6876765,145.42,145.38,10.28833474]
[1768400480477,0.70358399,145.43,145.38,10.28833474]
[1768400480767,0.70358399,145.43,145.38,27.48464785]
[1768400480955,0.70358399,145.43,145.38,10.28833474]
[1768400481265,0.70358399,145.43,145.36,29.75820846]
[1768400481470,0.65685617,145.41,145.36,33.16840721]
[1768400481633,0.65685617,145.41,145.36,22.84958207]
[1768400482039,0.65685617,145.4,145.36,12.56]
[1768400482461,0.65685617,145.38,145.34,6.88028389]
[1768400482666,0.65685617,145.38,145.34,10.29048264]
[1768400483959,0.65685617,145.38,145.35,6.87983372]
[1768400484164,0.65685617,145.38,145.34,10.29061707]
[1768400485373,0.65685617,145.4,145.35,3.41019875]
[1768400486366,0.65685617,145.39,145.35,6.87975738]
[1768400486548,0.65685617,145.39,145.35,10.28995613]
[1768400486746,0.65685617,145.39,145.35,6.87975738]
[1768400486955,0.65685617,145.39,145.35,10.28995613]
[1768400487354,0.65685617,145.4,145.36,3.41019875]
[1768400487869,0.65685617,145.4,145.35,10.28995613]
[1768400488056,0.65685617,145.39,145.35,6.87979294]
[1768400489545,0.65685617,145.39,145.35,10.28999169]
[1768400490264,4.06705492,145.38,145.34,6.88024052]
[1768400490671,0.65685617,145.38,145.34,6.88024052]
[1768400490973,0.65685617,145.38,145.34,10.29043927]
[1768400491477,0.65685617,145.38,145.34,6.88024052]
[1768400497555,0.65685617,145.38,145.34,10.29043927]
[1768400499767,0.65685617,145.38,145.34,3.41019875]
[1768400500782,0.65685617,145.37,145.33,10.29109051]
[1768400501185,0.65685617,145.37,145.35,3.41019875]
[1768400501358,0.65685617,145.37,145.34,3.41019875]
[1768400502172,0.65685617,145.37,145.34,10.29030791]
[1768400503675,0.65685617,145.37,145.34,3.41019875]
[1768400503877,0.65685617,145.37,145.33,24.08312116]
[1768400504186,0.65685617,145.42,145.36,3.41019875]
[1768400504386,0.65685617,145.42,145.38,3.41019875]
[1768400504604,0.65685617,145.42,145.39,3.41019875]
[1768400504815,0.65685617,145.43,145.4,3.41019875]
[1768400506091,0.65685617,145.43,145.39,10.28786549]
[1768400506300,0.65685617,145.42,145.39,6.87766674]
[1768400506458,0.65685617,145.42,145.38,6.87832406]
[1768400506663,0.65685617,145.42,145.37,10.28899293]
[1768400506964,0.65685617,145.42,145.37,6.87879418]
[1768400507181,0.65685617,145.41,145.37,10.28899293]
[1768400508056,0.65685617,145.41,145.37,6.87879418]
[1768400508260,0.65685617,145.41,145.37,10.28899293]
[1768400508562,0.65685617,145.41,145.38,3.41019875]
[1768400509062,0.65685617,145.41,145.37,10.28899293]
[1768400509287,0.65685617,145.41,145.37,6.87879418]
[1768400509467,0.65685617,145.41,145.37,10.28899293]
[1768400509657,0.65685617,145.41,145.37,6.87879418]
[1768400510483,0.65685617,145.43,145.4,3.41019875]
[1768400510683,0.65685617,145.43,145.37,24.07629022]
[1768400510986,0.65685617,145.43,145.38,3.41019875]
[1768400511390,0.65685617,145.43,145.39,3.41019875]
[1768400511798,0.65685617,145.43,145.4,3.41019875]
[1768400512089,0.65685617,145.43,145.41,3.41019875]
[1768400512464,0.65685617,145.43,145.4,6.87743138]
[1768400512664,0.65685617,145.43,145.4,10.28763013]
[1768400514368,0.1,145.48,145.42,3.41019875]
[1768400514692,0.65540836,145.53,145.43,12.54]
[1768400514894,4.22392012,145.55,145.52,3.41019875]
[1768400515099,0.1,145.56,145.53,12.54]
[1768400515100,0.75540836,145.56,145.53,12.54]
[1768400515395,6.97002002,145.56,145.52,12.54]
[1768400515590,0.65540836,145.55,145.52,12.54]
[1768400515986,0.65540836,145.55,145.53,3.41019875]
[1768400516190,0.65540836,145.55,145.52,12.54]
[1768400516393,0.65540836,145.55,145.52,22.82164674]
[1768400517081,0.65540836,145.55,145.52,12.54]
[1768400517398,0.65540836,145.55,145.52,15.95019875]
[1768400517796,0.65540836,145.54,145.52,12.54]
[1768400519114,0.65540836,145.53,145.48,6.87378793]
[1768400519302,0.65540836,145.53,145.48,15.95019875]
[1768400519609,0.65540836,145.52,145.45,17.18729863]
[1768400519840,0.65540836,145.52,145.48,10.28363075]
[1768400520475,0.65540836,145.52,145.48,6.873432]
[1768400520679,0.65540836,145.52,145.49,3.41019875]
[1768400521279,0.65540836,145.52,145.49,2.17587204]
[1768400521684,0.65540836,145.52,145.48,6.873432]
[1768400521890,0.65540836,145.52,145.48,2.17587204]
[1768400522520,0.65540836,145.52,145.47,19.41413167]
[1768400522822,0.65540836,145.52,145.48,2.17587204]
[1768400523112,0.65540836,145.51,145.47,19.41413167]
[1768400523482,0.65540836,145.51,145.47,21.59000371]
[1768400524128,0.65540836,145.51,145.47,19.41413167]
[1768400524335,0.65540836,145.51,145.48,2.17587204]
[1768400525122,0.65540836,145.5,145.42,17.19122416]
[1768400525334,0.65540836,145.5,145.46,2.17587204]
[1768400525536,0.65540836,145.5,145.45,2.17587204]
[1768400525827,0.65540836,145.47,145.41,6.87710611]
[1768400526016,0.65540836,145.47,145.43,2.17587204]
[1768400527028,0.65540836,145.48,145.43,6.87587262]
[1768400527210,0.65540836,145.48,145.45,2.17587204]
[1768400527933,0.65540836,145.48,145.46,2.17587204]
[1768400528215,0.65540836,145.5,145.44,12.54]
[1768400528414,6.6801107,145.54,145.44,12.54]
[1768400528415,0.65540836,145.52,145.48,2.17587204]
[1768400528619,0.65540836,145.52,145.44,12.54]
[1768400528821,0.65540836,145.52,145.48,2.17587204]
[1768400529023,0.65540836,145.51,145.46,6.87428344]
[1768400529320,0.65540836,145.51,145.46,2.17587204]
[1768400529616,0.65540836,145.51,145.47,2.17587204]
[1768400529836,0.65540836,145.53,145.46,17.18682361]
[1768400530193,0.65540836,145.52,145.47,6.87421566]
[1768400530400,0.65540836,145.51,145.47,9.0500877]
[1768400531018,7.52720405,145.53,145.48,2.17587204]
[1768400532622,7.52720405,145.53,145.47,19.41421566]
[1768400532623,0.65540836,145.52,145.47,21.5900877]
[1768400533004,0.1,145.56,145.51,2.17587204]
[1768400533303,0.65540836,145.55,145.47,36.59988968]
[1768400533707,0.65540836,145.55,145.51,2.17587204]
[1768400534224,0.65540836,145.55,145.51,2.11587205]
[1768400534730,0.1,145.56,145.53,2.17587204]
[1768400534930,0.1,145.56,145.54,2.17587204]
[1768400535132,0.75540836,145.56,145.51,6.87225214]
[1768400535428,0.75540836,145.56,145.53,2.17587204]
[1768400536130,7.62551844,145.56,145.51,6.87225214]
[1768400536310,0.75540836,145.56,145.53,2.17587204]
[1768400536731,7.62545096,145.56,145.53,2.17587204]
[1768400537339,0.65540836,145.55,145.52,2.17587204]
[1768400537715,6.9700426,145.56,145.53,2.17587204]
[1768400537913,0.65540836,145.55,145.5,19.41266937]
[1768400538226,0.65540836,145.54,145.49,2.17587204]
[1768400538934,7.5268438,145.53,145.49,2.17587204]
[1768400539132,7.5268438,145.53,145.48,19.41377878]